bitfinex-derivatives/quotes_BTCF0:USTF0_20241125
["timestamp","ask_amount","ask_price","bid_price","bid_amount"]
[1732563840137,0.0012,95123.0,95122.0,0.0089821]
[1732563840528,0.0012,95123.0,95122.0,0.0615441]
[1732563841234,0.0012,95123.0,95122.0,0.0089821]
[1732563841737,0.053761,95123.0,95122.0,0.0089821]
[1732563842534,0.17946035,95123.0,95122.0,0.0004]
[1732563842735,0.053761,95123.0,95122.0,0.0004]
[1732563843636,0.0012,95123.0,95122.0,0.0004]
[1732563843842,0.0012,95123.0,95122.0,0.052962]
[1732563844524,0.12564771,95141.0,95122.0,0.368362]
[1732563844735,0.3608,95158.0,95122.0,0.368362]
[1732563844736,0.12564771,95145.0,95139.0,0.3608]
[1732563844937,0.12564771,95150.0,95140.0,0.22898]
[1732563845233,0.0001285,95152.0,95148.0,0.3608]
[1732563845234,0.052547,95149.0,95148.0,0.3608]
[1732563845738,0.0001285,95152.0,95148.0,0.3608]
[1732563846038,0.0001285,95152.0,95151.0,0.053346]
[1732563846233,0.0001285,95152.0,95151.0,0.225826]
[1732563846632,0.0526735,95152.0,95151.0,0.225826]
[1732563847032,0.0526735,95152.0,95151.0,0.17328]
[1732563847340,0.0526735,95152.0,95151.0,0.00913157]
[1732563847730,0.15713794,95152.0,95151.0,0.00913157]
[1732563847934,0.0001285,95152.0,95151.0,0.06167757]
[1732563851731,0.0526735,95152.0,95151.0,0.0008]
[1732563851932,0.20968294,95152.0,95151.0,0.0008]
[1732563852131,0.0526735,95152.0,95151.0,0.0008]
[1732563853241,0.0001285,95152.0,95151.0,0.0008]
[1732563853636,0.1571132,95152.0,95151.0,0.0008]
[1732563853830,0.0001285,95152.0,95151.0,0.0008]
[1732563857541,0.0001285,95152.0,95151.0,0.053346]
[1732563858035,0.0001285,95152.0,95151.0,0.0008]
[1732563859345,0.0001285,95152.0,95151.0,0.053346]
[1732563861740,0.15711902,95152.0,95151.0,0.053346]
[1732563862256,0.15711902,95152.0,95151.0,0.368626]
[1732563862440,0.0001285,95152.0,95151.0,0.368626]
[1732563863645,0.0001285,95152.0,95151.0,0.053346]
[1732563864242,0.0001285,95152.0,95151.0,0.368626]
[1732563864841,0.0001285,95152.0,95151.0,0.540946]
[1732563866350,0.058,95178.0,95151.0,0.540946]
[1732563866351,0.15697546,95168.0,95167.0,0.052537]
[1732563866553,0.052524,95191.0,95167.0,0.052537]
[1732563866554,0.15697546,95177.0,95167.0,0.53312]
[1732563866749,0.18837056,95181.0,95176.0,0.3608]
[1732563866943,0.052529,95182.0,95181.0,0.052529]
[1732563866944,0.24089956,95182.0,95181.0,0.052529]
[1732563867144,0.052529,95182.0,95181.0,0.224849]
[1732563867454,0.052529,95182.0,95181.0,0.22573538]
[1732563867644,0.24089756,95186.0,95185.0,0.052527]
[1732563867948,0.052527,95186.0,95185.0,0.414127]
[1732563870481,0.12549901,95189.0,95186.0,0.052527]
[1732563870645,0.12549901,95188.0,95186.0,0.052527]
[1732563871046,0.12549901,95188.0,95187.0,0.052526]
[1732563871253,0.12547255,95188.0,95187.0,0.052526]
[1732563872055,0.0594,95191.0,95185.0,0.36938993]
[1732563872056,0.12547255,95189.0,95185.0,0.36938993]
[1732563872351,0.12558759,95195.0,95189.0,0.052525]
[1732563872554,0.12558759,95195.0,95194.0,0.052522]
[1732563872555,0.00011504,95195.0,95194.0,0.052522]
[1732563874170,0.00911504,95195.0,95194.0,0.053522]
[1732563876453,0.00911504,95195.0,95194.0,0.225762]
[1732563877046,0.00911504,95195.0,95194.0,0.053522]
[1732563878148,0.00911504,95195.0,95194.0,0.001]
[1732563878365,0.00911504,95195.0,95184.0,0.3608]
[1732563878366,0.62427504,95195.0,95184.0,0.3608]
[1732563878552,0.62427504,95195.0,95165.0,0.48588]
[1732563878553,0.052529,95182.0,95168.0,0.052536]
[1732563878751,0.052529,95182.0,95174.0,0.3608]
[1732563879050,0.0004,95175.0,95162.0,0.05254]
[1732563879253,0.0004,95175.0,95156.0,0.3608]
[1732563879254,0.052543,95157.0,95156.0,0.0084429]
[1732563879452,0.052543,95157.0,95135.0,0.0015766]
[1732563879453,0.12542551,95157.0,95135.0,0.0015766]
[1732563879758,0.0004,95136.0,95135.0,0.0015766]
[1732563879949,0.0004,95136.0,95135.0,0.0541316]
[1732563880148,0.0004,95136.0,95135.0,0.05421068]
[1732563881256,0.15679809,95160.0,95135.0,0.73707068]
[1732563881488,0.3608,95157.0,95145.0,0.3608]
[1732563881644,0.413343,95157.0,95152.0,0.052545]
[1732563881853,0.3608,95153.0,95151.0,0.052546]
[1732563882059,0.3608,95153.0,95140.0,0.07426127]
[1732563882261,0.0004,95152.0,95141.0,0.17208]
[1732563882755,0.0004,95152.0,95151.0,0.052546]
[1732563882958,0.0004,95152.0,95151.0,0.054546]
[1732563883574,0.0004,95152.0,95151.0,0.052546]
[1732563884058,0.0004,95152.0,95151.0,0.054546]
[1732563884752,0.0004,95152.0,95151.0,0.06296267]
[1732563885456,0.0004,95152.0,95151.0,0.06096267]
[1732563885758,0.0004,95152.0,95151.0,0.06296267]
[1732563886755,0.0004,95152.0,95151.0,0.23504267]
[1732563886957,0.0004,95152.0,95151.0,0.23304267]
[1732563887258,0.0004,95152.0,95151.0,0.23504267]
[1732563890758,0.0004,95152.0,95151.0,0.23304267]
[1732563890961,0.0004,95152.0,95151.0,0.06296267]
[1732563891159,0.0004,95152.0,95151.0,0.23504267]
[1732563892861,0.0004,95152.0,95151.0,0.06296267]
[1732563893164,0.0004,95152.0,95151.0,0.01041667]
[1732563893165,0.052945,95152.0,95151.0,0.01041667]
[1732563893552,0.052945,95152.0,95151.0,0.06296267]
[1732563894662,0.0004,95152.0,95151.0,0.06296267]
[1732563895863,0.0004,95152.0,95151.0,0.002]
[1732563895864,0.368225,95152.0,95151.0,0.002]
[1732563896066,0.052554,95136.0,95129.0,0.3608]
[1732563896258,0.052546,95151.0,95136.0,0.052554]
[1732563896259,0.052552,95140.0,95136.0,0.052554]
[1732563896461,0.3608,95145.0,95136.0,0.052554]
[1732563896761,0.3608,95145.0,95135.0,0.36924139]
[1732563897114,0.41335,95145.0,95141.0,0.052551]
[1732563897263,0.41335,95145.0,95142.0,0.052551]
[1732563897462,0.41335,95145.0,95136.0,0.002]
[1732563897667,0.3608,95145.0,95139.0,0.052552]
[1732563898171,0.3608,95145.0,95141.0,0.052551]
[1732563898366,0.3608,95145.0,95136.0,0.002]
[1732563898560,0.0592,95144.0,95136.0,0.002]
[1732563898760,0.052552,95141.0,95136.0,0.054554]
[1732563899064,0.0592,95144.0,95135.0,0.37024139]
[1732563899260,0.0592,95144.0,95140.0,0.052552]
[1732563899456,0.11175,95144.0,95143.0,0.0012]
[1732563900460,0.0592,95144.0,95143.0,0.0012]
[1732563900659,0.11175,95144.0,95143.0,0.0012]
[1732563902564,0.42707,95144.0,95143.0,0.0012]
[1732563902770,0.42707,95144.0,95143.0,0.0022]
[1732563904171,0.052554,95136.0,95135.0,7.908e-05]
[1732563904410,0.413354,95136.0,95135.0,7.908e-05]
[1732563904670,0.728674,95136.0,95135.0,7.908e-05]
[1732563905167,0.413354,95136.0,95135.0,7.908e-05]
[1732563905371,0.728674,95136.0,95135.0,0.00107908]
[1732563906369,0.7287483,95136.0,95135.0,0.00107908]
[1732563906563,0.7287483,95136.0,95114.0,0.3608]
[1732563906564,0.052564,95119.0,95115.0,0.06238434]
[1732563906771,0.052564,95119.0,95116.0,0.052565]
[1732563906970,0.052564,95119.0,95115.0,0.00157678]
[1732563906971,0.052561,95124.0,95115.0,0.00157678]
[1732563907271,0.36941459,95136.0,95123.0,0.3612]
[1732563907272,0.15698255,95134.0,95123.0,0.3612]
[1732563907570,7.43e-05,95136.0,95135.0,0.052555]
[1732563907774,0.18819739,95154.0,95151.0,0.052546]
[1732563907964,0.19676376,95162.0,95151.0,0.413346]
[1732563908169,0.19676376,95162.0,95151.0,0.413746]
[1732563908170,0.00856637,95162.0,95151.0,0.413746]
[1732563908374,0.3608,95165.0,95151.0,0.413746]
[1732563908773,0.0094,95152.0,95151.0,0.414746]
[1732563909278,0.0004,95152.0,95151.0,0.413746]
[1732563909477,0.0004,95152.0,95151.0,0.37070999]
[1732563909666,0.413746,95152.0,95151.0,0.0014]
[1732563910170,0.3612,95152.0,95151.0,0.0014]
[1732563910375,0.0004,95152.0,95151.0,0.0014]
[1732563910672,0.0004,95152.0,95151.0,0.053946]
[1732563911404,0.0004,95152.0,95151.0,0.414746]
[1732563912573,0.052946,95152.0,95151.0,0.414746]
[1732563912775,0.052946,95152.0,95151.0,0.0014]
[1732563912976,0.729026,95152.0,95151.0,0.0014]
[1732563913278,0.729026,95152.0,95124.0,0.00011984]
[1732563913279,0.052561,95125.0,95124.0,0.00011984]
[1732563913673,0.052961,95125.0,95124.0,0.00011984]
[1732563914566,0.052961,95125.0,95124.0,0.00111984]
[1732563914969,0.21010784,95125.0,95124.0,0.00111984]
[1732563915172,0.052961,95125.0,95124.0,0.00111984]
[1732563915383,0.052566,95116.0,95115.0,0.00157678]
[1732563915573,0.052563,95122.0,95115.0,0.00157678]
[1732563915769,0.0004,95116.0,95115.0,0.00157678]
[1732563915976,0.15714684,95132.0,95115.0,0.00157678]
[1732563916171,0.15714684,95142.0,95125.0,0.05256]
[1732563916481,0.15714684,95149.0,95147.0,0.052549]
[1732563916777,0.0004,95152.0,95148.0,0.0004]
[1732563916976,0.0004,95152.0,95150.0,0.052546]
[1732563917178,0.0004,95152.0,95151.0,0.0004]
[1732563918870,0.19798139,95152.0,95151.0,0.0014]
[1732563919180,0.0094,95152.0,95151.0,0.0014]
[1732563919480,0.16649297,95152.0,95151.0,0.0014]
[1732563919704,0.0094,95152.0,95151.0,0.0014]
[1732563919885,0.0094,95152.0,95151.0,0.053946]
[1732563920480,0.0094,95152.0,95151.0,0.0014]
[1732563921967,0.0184,95152.0,95151.0,0.0024]
[1732563923678,0.0184,95152.0,95151.0,0.054946]
[1732563924479,0.0184,95152.0,95151.0,0.0024]
[1732563925171,0.20701789,95152.0,95151.0,0.0024]
[1732563925374,0.0184,95152.0,95151.0,0.0024]
[1732563926379,0.33368,95152.0,95151.0,0.0024]
[1732563927077,0.0184,95152.0,95151.0,0.0024]
[1732563928575,0.0184,95152.0,95151.0,0.054946]
[1732563930571,0.0184,95152.0,95151.0,0.370226]
[1732563930775,0.0184,95152.0,95151.0,0.226746]
[1732563932273,0.0094,95152.0,95151.0,0.226746]
[1732563932479,0.0004,95152.0,95151.0,0.226746]
[1732563934581,0.0004,95152.0,95151.0,0.054946]
[1732563934780,0.0004,95152.0,95151.0,0.226746]
[1732563935088,0.0004,95152.0,95151.0,0.054946]
[1732563935089,0.052946,95152.0,95151.0,0.054946]
[1732563935679,0.052946,95152.0,95151.0,0.0024]
[1732563935987,0.0004,95152.0,95151.0,0.054946]
[1732563936492,0.052946,95152.0,95151.0,0.0024]
[1732563938385,0.413746,95152.0,95151.0,0.0024]
[1732563939288,0.3612,95152.0,95151.0,0.0024]
[1732563939584,0.413746,95152.0,95151.0,0.0024]
[1732563939777,0.052946,95152.0,95151.0,0.0024]
[1732563939982,0.413746,95152.0,95151.0,0.0024]
[1732563940379,0.0004,95152.0,95151.0,0.0024]
[1732563941091,0.0004,95152.0,95151.0,0.054946]
[1732563942393,0.052544,95156.0,95152.0,0.052546]
[1732563942689,0.052544,95156.0,95151.0,0.0024]
[1732563942690,0.3608,95156.0,95155.0,0.0004]
[1732563943075,0.3608,95156.0,95155.0,0.052944]
[1732563943484,0.3608,95156.0,95155.0,0.0004]
[1732563943824,0.413344,95156.0,95155.0,0.0004]
[1732563944287,0.052544,95156.0,95155.0,0.0004]
[1732563944485,0.052544,95156.0,95155.0,0.0014]
[1732563944486,0.3608,95156.0,95155.0,0.0014]
[1732563944681,0.18867407,95162.0,95155.0,0.0014]
[1732563944682,0.052543,95157.0,95155.0,0.0014]
[1732563944887,0.3608,95156.0,95155.0,0.0024]
[1732563945084,0.052543,95157.0,95155.0,0.002]
[1732563945887,0.3608,95165.0,95155.0,0.002]
[1732563945888,0.413344,95156.0,95155.0,0.002]
[1732563946692,0.052544,95156.0,95155.0,0.001]
[1732563946889,0.24145716,95156.0,95155.0,0.002]
[1732563947379,0.052544,95156.0,95155.0,0.001]
[1732563947583,0.413344,95156.0,95155.0,0.001]
[1732563947788,0.413344,95156.0,95155.0,0.002]
[1732563948402,0.728624,95156.0,95155.0,0.002]
[1732563948687,0.052547,95149.0,95148.0,0.0004]
[1732563948990,0.052547,95149.0,95129.0,0.3608]
[1732563948991,0.0004,95149.0,95130.0,0.18842996]
[1732563949194,0.052558,95130.0,95129.0,0.3608]
[1732563949389,0.05256,95127.0,95126.0,0.00013246]
[1732563949589,0.052562,95122.0,95115.0,0.18842996]
[1732563949893,0.0004,95116.0,95105.0,0.052571]
[1732563950078,0.052568,95112.0,95105.0,0.052571]
[1732563950284,0.0004,95106.0,95105.0,0.052571]
[1732563950787,0.0004,95106.0,95105.0,0.4134954]
[1732563951591,0.0004,95106.0,95105.0,0.4144954]
[1732563952185,0.052971,95106.0,95105.0,0.3629244]
[1732563952695,0.0004,95106.0,95105.0,0.4154964]
[1732563953197,0.0004,95106.0,95105.0,0.3629244]
[1732563953392,0.052971,95106.0,95105.0,0.3629244]
[1732563953588,0.413771,95106.0,95105.0,0.0021244]
[1732563954684,0.729211,95106.0,95105.0,0.0021244]
[1732563954881,0.73757755,95106.0,95105.0,0.0021244]
[1732563955101,0.73757755,95106.0,95105.0,0.0011244]
[1732563955289,0.73757755,95106.0,95083.0,0.00157746]
[1732563955290,0.052583,95084.0,95083.0,0.00157746]
[1732563955490,0.413383,95084.0,95083.0,0.00157746]
[1732563955689,0.413783,95084.0,95083.0,0.00157746]
[1732563956088,0.0004,95084.0,95083.0,0.3608]
[1732563956588,0.0004,95084.0,95083.0,0.36087942]
[1732563957395,0.0004,95084.0,95083.0,0.37018196]
[1732563957785,0.0004,95084.0,95083.0,0.36918196]
[1732563957990,0.0004,95084.0,95083.0,0.37118196]
[1732563958384,0.0004,95084.0,95083.0,0.37018196]
[1732563958585,0.0004,95084.0,95083.0,0.37118196]
[1732563958788,0.0004,95084.0,95083.0,0.37018196]
[1732563959799,0.00011773,95106.0,95105.0,0.052572]
[1732563959989,0.052558,95131.0,95128.0,0.052558]
[1732563960310,0.052558,95130.0,95129.0,0.052558]
[1732563960488,0.052559,95129.0,95125.0,0.05256]
[1732563960691,0.052559,95129.0,95127.0,0.052559]
[1732563961095,0.052559,95129.0,95128.0,0.001]
[1732563961283,0.009,95131.0,95129.0,0.052558]
[1732563961687,0.00010494,95141.0,95130.0,0.0004]
[1732563961885,0.052553,95140.0,95134.0,0.052556]
[1732563962300,0.00010494,95141.0,95128.0,0.3608]
[1732563962800,0.052559,95129.0,95127.0,0.002]
[1732563962992,0.052559,95129.0,95127.0,0.001]
[1732563963298,0.0004,95128.0,95127.0,0.001]
[1732563964595,0.0004,95128.0,95126.0,0.05256]
[1732563964794,0.0004,95128.0,95121.0,0.00849363]
[1732563964990,0.052557,95132.0,95120.0,0.3608]
[1732563964991,0.0004,95127.0,95120.0,0.413363]
[1732563965196,0.0004,95122.0,95120.0,0.413363]
[1732563965399,0.0004,95121.0,95120.0,0.413363]
[1732563965598,0.0004,95121.0,95120.0,0.584963]
[1732563966297,0.00010494,95141.0,95140.0,0.052552]
[1732563966490,0.00010494,95141.0,95140.0,0.584912]
[1732563966693,0.00010494,95141.0,95140.0,0.58531201]
[1732563967796,0.00010494,95141.0,95140.0,0.58631201]
[1732563968899,0.00010494,95141.0,95140.0,0.58731201]
[1732563969594,0.00010494,95141.0,95140.0,0.59550178]
[1732563970402,0.052543,95157.0,95142.0,0.052551]
[1732563970598,0.052543,95157.0,95140.0,0.59550178]
[1732563970599,0.052546,95152.0,95150.0,0.3608]
[1732563970792,0.3608,95160.0,95148.0,0.17132]
[1732563970994,0.052547,95150.0,95148.0,0.17132]
[1732563971299,0.0004,95149.0,95148.0,0.17132]
[1732563971694,0.0004,95149.0,95148.0,0.53212]
[1732563972300,0.0004,95149.0,95148.0,0.53412]
[1732563972810,0.00913104,95160.0,95159.0,0.052542]
[1732563973009,0.15655681,95184.0,95168.0,0.052537]
[1732563973195,0.052528,95185.0,95168.0,0.052537]
[1732563973395,0.0597,95189.0,95168.0,0.052537]
[1732563973396,0.052531,95179.0,95168.0,0.052537]
[1732563973601,0.24837535,95189.0,95168.0,0.052537]
[1732563973794,0.052533,95175.0,95168.0,0.052537]
[1732563973999,0.052533,95175.0,95168.0,0.0526345]
[1732563974197,0.05980367,95189.0,95168.0,0.0526345]
[1732563974394,0.052536,95170.0,95168.0,9.75e-05]
[1732563974594,0.18867535,95184.0,95168.0,9.75e-05]
[1732563974904,0.052527,95186.0,95169.0,0.052536]
[1732563975097,0.05980367,95189.0,95174.0,0.3608]
[1732563975098,0.00010367,95189.0,95174.0,0.3608]
[1732563975299,0.00010367,95189.0,95188.0,0.052526]
[1732563975501,0.00010367,95189.0,95188.0,0.05332601]
[1732563976308,0.00910367,95189.0,95188.0,0.22460601]
[1732563977003,0.00910367,95189.0,95188.0,0.22560601]
[1732563977803,0.00910367,95189.0,95188.0,0.23418717]
[1732563978111,0.00910367,95189.0,95188.0,0.01138117]
[1732563978309,0.01810367,95189.0,95188.0,0.00280001]
[1732563979805,0.052527,95186.0,95185.0,0.00080001]
[1732563980009,0.052527,95186.0,95168.0,0.3608975]
[1732563980010,0.052536,95170.0,95168.0,9.75e-05]
[1732563980508,0.3608,95173.0,95168.0,9.75e-05]
[1732563980905,0.3608,95175.0,95172.0,0.0004]
[1732563981103,0.3608,95175.0,95173.0,0.052534]
[1732563981301,0.3608,95175.0,95174.0,0.0004]
[1732563981302,0.413333,95175.0,95174.0,0.0004]
[1732563982399,0.73714949,95175.0,95174.0,0.0004]
[1732563982805,0.73714949,95175.0,95174.0,0.0014]
[1732563985113,0.052536,95169.0,95168.0,9.75e-05]
[1732563985409,0.58577602,95169.0,95168.0,9.75e-05]
[1732563985614,0.90101602,95169.0,95168.0,9.75e-05]
[1732563986002,0.90101602,95169.0,95142.0,0.3608]
[1732563986003,0.052548,95149.0,95142.0,0.3608]
[1732563986208,0.3608,95150.0,95142.0,0.3608]
[1732563986401,0.00120002,95143.0,95130.0,0.3608]
[1732563986603,0.413356,95134.0,95130.0,0.00821175]
[1732563986818,0.00120002,95131.0,95122.0,0.3608]
[1732563987109,0.052557,95132.0,95123.0,9.054e-05]
[1732563987812,0.052559,95129.0,95123.0,9.054e-05]
[1732563988614,0.3608,95126.0,95123.0,0.00109054]
[1732563988808,0.052559,95129.0,95123.0,0.00109054]
[1732563989110,0.052555,95136.0,95128.0,0.052959]
[1732563989316,0.3692771,95137.0,95128.0,0.0004]
[1732563989637,0.17128,95136.0,95123.0,0.00109054]
[1732563989804,0.17128,95136.0,95128.0,0.052559]
[1732563989999,0.3608,95137.0,95123.0,0.00109054]
[1732563990201,0.3608,95148.0,95130.0,0.3608]
[1732563990410,0.3608,95148.0,95139.0,0.052553]
[1732563990608,0.3608,95148.0,95147.0,0.0004]
[1732563990803,0.413347,95151.0,95147.0,0.0004]
[1732563991210,0.413347,95151.0,95150.0,0.0004]
[1732563992421,0.3608,95163.0,95155.0,0.052544]
[1732563992709,0.41334,95163.0,95162.0,0.0004]
[1732563993701,0.3608,95163.0,95162.0,0.05294]
[1732563993909,0.009,95163.0,95162.0,0.05394]
[1732563994508,0.009,95163.0,95162.0,0.05294]
[1732563994708,0.009,95163.0,95162.0,0.00875534]
[1732563995011,0.052538,95167.0,95162.0,0.00975534]
[1732563995209,0.052538,95166.0,95162.0,0.00975534]
[1732563995410,0.41334,95163.0,95162.0,0.0014]
[1732563995608,0.052541,95162.0,95145.0,0.00826195]
[1732563995880,0.052541,95162.0,95131.0,0.1173]
[1732563995881,0.052552,95142.0,95135.0,0.05413148]
[1732563996114,0.3608,95152.0,95135.0,0.00157648]
[1732563996115,0.15681743,95148.0,95135.0,0.00157648]
[1732563996311,0.15681743,95151.0,95138.0,0.052553]
[1732563996514,0.51761743,95152.0,95141.0,0.052551]
[1732563996714,0.15681743,95151.0,95137.0,0.36915114]
[1732563997016,0.052552,95141.0,95137.0,0.36915114]
[1732563997315,0.052555,95136.0,95135.0,0.00157648]
[1732563997614,0.05375502,95136.0,95135.0,0.00157648]
[1732563997810,0.22479502,95136.0,95135.0,0.00157648]
[1732563998206,0.41297594,95136.0,95135.0,0.00157648]
[1732563998410,0.4130224,95136.0,95135.0,0.00257648]
[1732563998613,0.23328329,95136.0,95135.0,0.00257648]
[1732563998818,0.58559502,95136.0,95135.0,0.001]
[1732563999414,0.90091502,95136.0,95135.0,0.001]
[1732564000111,0.41455502,95136.0,95135.0,0.001]
[1732564000612,0.052561,95124.0,95113.0,0.00848558]
[1732564001016,0.05384572,95124.0,95113.0,0.00848558]
[1732564001217,0.36920572,95124.0,95113.0,0.00848558]
[1732564001921,0.36920572,95124.0,95123.0,0.00109054]
[1732564002143,0.05384572,95124.0,95123.0,0.00109054]
[1732564004422,0.36920572,95124.0,95123.0,0.00109054]
[1732564004720,0.052571,95106.0,95105.0,0.0004]
[1732564005112,0.05377102,95106.0,95105.0,0.0004]
[1732564005526,0.05377102,95106.0,95105.0,0.00050444]
[1732564007016,0.05377102,95106.0,95105.0,0.00150444]
[1732564008325,0.06277102,95106.0,95105.0,0.00250444]
[1732564009025,0.06277102,95106.0,95105.0,0.00150444]
[1732564009026,0.05377102,95106.0,95105.0,0.00150444]
[1732564010326,0.052579,95093.0,95058.0,0.93939]
[1732564010529,0.3608,95077.0,95064.0,0.0587]
[1732564010725,0.05259,95073.0,95064.0,0.0587]
[1732564010917,0.00160001,95065.0,95064.0,0.111294]
[1732564011115,0.00160001,95065.0,95064.0,0.0587]
[1732564011320,0.00160001,95065.0,95064.0,0.05881234]
[1732564011724,0.00160001,95065.0,95064.0,0.37537234]
[1732564013630,0.00160001,95065.0,95064.0,0.54649234]
[1732564015123,0.00160001,95065.0,95064.0,0.23093234]
[1732564015324,0.00160001,95065.0,95064.0,0.54649234]
[1732564015516,0.00160001,95065.0,95064.0,0.23093234]
[1732564015718,0.00160001,95065.0,95064.0,0.37537234]
[1732564016016,0.00160001,95065.0,95064.0,0.54649234]
[1732564016220,0.00160001,95065.0,95064.0,0.37537234]
[1732564016417,0.00160001,95065.0,95064.0,0.05981234]
[1732564018231,0.00160001,95065.0,95064.0,0.11240634]
[1732564020224,0.052593,95068.0,95067.0,0.052593]
[1732564020444,0.052593,95068.0,95067.0,0.413393]
[1732564020628,0.052589,95073.0,95072.0,0.05259]
[1732564021026,0.0595,95079.0,95072.0,0.0004]
[1732564021221,0.052589,95073.0,95072.0,0.0004]
[1732564021422,0.052591,95071.0,95070.0,0.05259]
[1732564021826,0.052991,95071.0,95070.0,0.05259]
[1732564022936,0.0004,95071.0,95070.0,0.05259]
[1732564023326,0.052594,95065.0,95064.0,0.00111234]
[1732564023631,0.413794,95065.0,95064.0,0.00011234]
[1732564023831,0.413794,95065.0,95058.0,0.58015]
[1732564023832,0.72947361,95065.0,95058.0,0.58015]
[1732564024037,0.052597,95059.0,95058.0,0.57859]
[1732564024222,0.052997,95059.0,95058.0,0.57859]
[1732564024937,0.052997,95059.0,95058.0,0.57959]
[1732564025937,0.0004,95059.0,95058.0,0.57959]
[1732564026326,0.0004,95059.0,95058.0,0.57859]
[1732564026526,0.0004,95059.0,95058.0,0.57959]
[1732564027329,0.0004,95059.0,95058.0,0.58820995]
[1732564029232,0.0004,95059.0,95058.0,0.57959]
[1732564029627,0.0592,95059.0,95058.0,0.57959]
[1732564030730,0.2302,95059.0,95058.0,0.57959]
[1732564032226,0.5458,95059.0,95058.0,0.57959]
[1732564032625,0.54821694,95059.0,95058.0,0.57959]
[1732564032838,0.23261694,95059.0,95058.0,0.57959]
[1732564033131,0.54821694,95059.0,95058.0,0.57959]
[1732564034336,0.54821694,95059.0,95048.0,8.804e-05]
[1732564034337,0.052602,95049.0,95048.0,8.804e-05]
[1732564034534,0.41581894,95049.0,95048.0,8.804e-05]
[1732564034833,0.73185894,95049.0,95048.0,8.804e-05]
[1732564035223,0.73185894,95049.0,95048.0,4e-08]
[1732564035224,1.03185894,95049.0,95048.0,4e-08]
[1732564035638,0.73185894,95049.0,95048.0,4e-08]
[1732564036231,0.90289894,95049.0,95048.0,0.00100004]
[1732564036427,0.91119807,95049.0,95048.0,0.00100004]
[1732564037337,0.91119807,95049.0,95024.0,0.18758316]
[1732564037338,1.21119807,95049.0,95020.0,0.01095555]
[1732564037542,0.3608,95026.0,95020.0,0.00835555]
[1732564037740,0.3608,95026.0,95014.0,0.18916176]
[1732564037741,0.0004,95021.0,95014.0,0.0015786]
[1732564037937,0.413421,95015.0,95014.0,0.0015786]
[1732564038139,0.413821,95015.0,95014.0,0.0015786]
[1732564038331,0.3612,95015.0,95005.0,0.0083361]
[1732564038529,0.3612,95015.0,95014.0,0.05272238]
[1732564038731,0.00281694,95015.0,95014.0,0.05272238]
[1732564038943,0.00281694,95015.0,95014.0,0.05372238]
[1732564039162,0.00281694,95015.0,95014.0,0.06897098]
[1732564039163,0.00241694,95015.0,95014.0,0.06897098]
[1732564039340,0.00241694,95015.0,95014.0,0.42977098]
[1732564039638,0.00241694,95015.0,95014.0,0.42877098]
[1732564039846,0.00241694,95015.0,95014.0,0.45660511]
[1732564040050,0.00241694,95015.0,95014.0,0.45431448]
[1732564040236,0.00241694,95015.0,95014.0,0.74553098]
[1732564040437,0.3608,95038.0,95014.0,0.69290998]
[1732564040641,0.3608,95038.0,95031.0,0.18831447]
[1732564040848,0.3608,95038.0,95032.0,0.18831447]
[1732564041743,0.052611,95033.0,95031.0,0.18831447]
[1732564041936,0.3608,95038.0,95031.0,0.18831447]
[1732564042135,0.3608,95038.0,95035.0,0.05261]
[1732564042340,0.3608,95038.0,95037.0,0.0004]
[1732564042541,0.3608,95038.0,95037.0,0.053009]
[1732564043953,0.3608,95038.0,95037.0,0.054009]
[1732564045157,0.413408,95038.0,95037.0,0.0014]
[1732564045558,0.3608,95038.0,95037.0,0.054009]
[1732564047954,0.413408,95038.0,95037.0,0.054009]
[1732564048549,0.3608,95038.0,95037.0,0.054009]
[1732564048756,0.3608,95038.0,95037.0,0.223109]
[1732564048953,0.413408,95038.0,95037.0,0.223109]
[1732564049571,0.413408,95038.0,95037.0,0.0014]
[1732564052560,0.88573382,95038.0,95037.0,0.0014]
[1732564052763,0.052619,95018.0,95017.0,0.00157855]
[1732564052968,0.413419,95018.0,95017.0,0.00157855]
[1732564053258,0.413419,95018.0,95014.0,0.00010138]
[1732564053259,0.722,95018.0,95014.0,0.00010138]
[1732564053568,0.053021,95015.0,95014.0,0.00010138]
[1732564054051,0.21031018,95015.0,95014.0,0.00010138]
[1732564054252,0.053021,95015.0,95014.0,0.00010138]
[1732564054463,0.21024386,95015.0,95014.0,0.00010138]
[1732564054963,0.053021,95015.0,95014.0,0.00010138]
[1732564055155,0.21886439,95015.0,95014.0,0.00010138]
[1732564055352,0.06164153,95015.0,95014.0,0.00010138]
[1732564055958,0.06164153,95015.0,95014.0,0.00110138]
[1732564063866,0.37740153,95015.0,95014.0,0.00110138]
[1732564064458,0.37740153,95015.0,95014.0,0.00010138]
[1732564064763,0.37740153,95015.0,95014.0,0.00110138]
[1732564064960,0.052629,95001.0,95000.0,0.1]
[1732564065162,0.584389,95001.0,95000.0,0.1]
[1732564065362,0.584789,95001.0,95000.0,0.1]
[1732564065869,0.584789,95001.0,95000.0,0.10008505]
[1732564066202,0.584789,95001.0,95000.0,0.10108505]
[1732564066767,0.58492345,95001.0,95000.0,0.10108505]
[1732564067264,0.58492345,95001.0,94992.0,0.3608]
[1732564067265,0.052631,94997.0,94975.0,0.00086]
[1732564067567,0.053039,94983.0,94975.0,0.00086]
[1732564067771,0.223999,94983.0,94975.0,0.00086]
[1732564068305,0.223999,94983.0,94976.0,0.00010293]
[1732564068472,0.54834084,94983.0,94976.0,0.00010293]
[1732564069459,0.54834084,94983.0,94947.0,0.17096]
[1732564069460,0.052654,94955.0,94946.0,0.052659]
[1732564069660,0.052654,94955.0,94947.0,0.052659]
[1732564069861,0.052654,94955.0,94944.0,0.3608]
[1732564069862,0.052656,94951.0,94944.0,0.3608]
[1732564070064,0.0004,94948.0,94944.0,0.3608]
[1732564070268,0.07451713,94957.0,94932.0,0.3608]
[1732564070269,0.0004,94945.0,94932.0,0.3608]
[1732564070564,0.052665,94935.0,94933.0,0.00013086]
[1732564070766,0.3608,94934.0,94933.0,0.00013086]